lending/lending_fUSD_20250318
["ID","MTS","AMOUNT","RATE_DAILY","PERIOD"]
[356374397,1742339604171,-500.0,0.00041369,120]
[356374398,1742339604178,-500.0,0.00041369,120]
[356374399,1742339604187,-510.4284078,0.00041369,120]
[356374400,1742339604196,-500.0,0.00041369,120]
[356374401,1742339604205,-500.0,0.00041369,120]
[356374402,1742339604214,-500.0,0.00041369,120]
[356374403,1742339604223,-500.0,0.00041369,120]
[356374404,1742339604234,-305.86,0.00041369,120]
[356374405,1742339604243,-500.0,0.00041369,120]
[356374406,1742339604253,-500.0,0.00041369,120]
[356374407,1742339604262,-217.15216947,0.00041369,120]
[356374408,1742339604271,-500.0,0.00041369,120]
[356374409,1742339604280,-500.0,0.00041369,120]
[356374410,1742339604289,-500.0,0.00041369,120]
[356374411,1742339604298,-500.0,0.00041369,120]
[356374412,1742339604308,-500.0,0.00041369,120]
[356374413,1742339604317,-500.0,0.00041369,120]
[356374414,1742339604326,-500.0,0.00041369,120]
[356374415,1742339604335,-500.0,0.00041369,120]
[356374416,1742339604345,-500.0,0.00041369,120]
[356374417,1742339604354,-500.0,0.00041369,120]
[356374418,1742339604363,-500.0,0.00041369,120]
[356374419,1742339604372,-500.0,0.00041369,120]
[356374420,1742339604381,-500.0,0.00041369,120]
[356374421,1742339604390,-500.0,0.00041369,120]
[356374422,1742339604399,-500.0,0.00041369,120]
[356374423,1742339604408,-500.0,0.00041369,120]
[356374424,1742339604418,-500.0,0.00041369,120]
[356374425,1742339604427,-500.0,0.00041369,120]
[356374426,1742339604435,-500.0,0.00041369,120]
[356374427,1742339604445,-500.0,0.00041369,120]
[356374428,1742339604454,-500.0,0.00041369,120]
[356374429,1742339604463,-500.0,0.00041369,120]
[356374430,1742339604472,-500.0,0.00041369,120]
[356374431,1742339604482,-500.0,0.00041369,120]
[356374432,1742339604491,-500.0,0.00041369,120]
[356374433,1742339604500,-541.51783665,0.00041369,30]
[356374434,1742339604510,-532.88950156,0.00041369,120]
[356374435,1742339604519,-521.53748755,0.00041369,120]
[356374436,1742339604530,-500.0,0.00041369,120]
[356374437,1742339604539,-524.21144627,0.00041369,120]
[356374438,1742339604551,-610.08011084,0.00041369,120]
[356374439,1742339604560,-500.0,0.00041369,120]
[356374440,1742339604569,-500.0,0.00041369,120]
[356374441,1742339604579,-500.0,0.00041369,120]
[356374442,1742339604588,-500.0,0.00041369,120]
[356374443,1742339604597,-500.0,0.00041369,120]
[356374444,1742339604607,-500.0,0.00041369,120]
[356374445,1742339604616,-500.0,0.00041369,120]
[356374446,1742339604625,-500.0,0.00041369,120]
[356374447,1742339604635,-500.0,0.00041369,120]
[356374448,1742339604643,-500.0,0.00041369,120]
[356374449,1742339604652,-500.0,0.00041369,120]
[356374450,1742339604662,-500.0,0.00041369,120]
[356374451,1742339604671,-500.0,0.00041369,120]
[356374452,1742339604680,-592.74922038,0.00041369,120]
[356374453,1742339604689,-500.0,0.00041369,120]
[356374454,1742339604698,-500.0,0.00041369,120]
[356374455,1742339604708,-500.0,0.00041369,2]
[356374456,1742339604833,-557.13943266,0.00041369,120]
[356374457,1742339604843,-500.0,0.00041369,120]
[356374458,1742339604854,-4954.91,0.00041369,120]
[356374459,1742339604864,-500.0,0.00041369,120]
[356374460,1742339604874,-515.86,0.00041369,120]
[356374461,1742339604884,-1142.14,0.00041369,120]
[356374462,1742339604895,-500.0,0.00041369,120]
[356374463,1742339604905,-500.0,0.00041369,120]
[356374464,1742339604914,-1372.58,0.00041369,120]
[356374465,1742339604924,-2157.42,0.00041369,120]
[356374466,1742339604934,-500.0,0.00041369,120]
[356374467,1742339604944,-1414.54,0.00041369,120]
[356374468,1742339604953,-1247.27,0.00041369,120]
[356374469,1742339604963,-571.9,0.00041369,120]
[356374470,1742339604972,-1731.09,0.00041369,120]
[356374471,1742339604984,-500.0,0.00041369,120]
[356374472,1742339604993,-690.54,0.00041369,120]
[356374473,1742339605003,-1601.13,0.00041369,120]
[356374474,1742339605013,-647.8,0.00041369,120]
[356374475,1742339605022,-619.12,0.00041369,120]
[356374476,1742339605031,-500.0,0.00041369,120]
[356374477,1742339605041,-500.0,0.00041369,120]
[356374478,1742339605051,-657.42,0.00041369,120]
[356374479,1742339605060,-500.0,0.00041369,120]
[356374480,1742339605070,-1197.86,0.00041369,120]
[356374481,1742339605079,-500.0,0.00041369,120]
[356374482,1742339605089,-1514.57,0.00041369,120]
[356374483,1742339605099,-500.0,0.00041369,120]
[356374484,1742339605109,-500.0,0.00041369,120]
[356374485,1742339605120,-500.0,0.00041369,120]
[356374486,1742339605130,-508.24353197,0.00041369,120]
[356374487,1742339605141,-500.0,0.00041369,120]
[356374488,1742339605152,-500.0,0.00041369,120]
[356374489,1742339605163,-500.0,0.00041369,120]
[356374490,1742339605173,-500.0,0.00041369,30]
[356374491,1742339605184,-500.0,0.00041369,120]
[356374492,1742339605194,-525.88409866,0.00041369,120]
[356374493,1742339605204,-500.0,0.00041369,120]
[356374494,1742339605214,-500.0,0.00041369,120]
[356374495,1742339605224,-500.0,0.00041369,120]
[356374496,1742339605235,-500.0,0.00041369,120]
[356374497,1742339605244,-500.0,0.00041369,120]
[356374498,1742339605254,-500.0,0.00041369,120]
[356374499,1742339605263,-527.33121824,0.00041369,120]
[356374500,1742339605273,-500.0,0.00041369,120]
[356374501,1742339605283,-508.95745315,0.00041369,120]
[356374502,1742339605292,-500.0,0.00041369,120]
[356374503,1742339605302,-500.0,0.00041369,120]
[356374504,1742339605312,-500.0,0.00041369,2]
[356374505,1742339605322,-500.0,0.00041369,120]
[356374506,1742339605332,-500.0,0.00041369,120]
[356374507,1742339605342,-500.0,0.00041369,120]
[356374508,1742339605352,-500.0,0.00041369,120]
[356374509,1742339605362,-500.0,0.00041369,120]
[356374510,1742339605372,-500.0,0.00041369,120]
[356374511,1742339605381,-500.0,0.00041369,120]
[356374512,1742339605391,-552.0043397,0.00041369,120]
[356374513,1742339605401,-500.0,0.00041369,120]
[356374514,1742339605411,-500.0,0.00041369,120]
[356374515,1742339605420,-500.0,0.00041369,120]
[356374516,1742339605430,-500.0,0.00041369,120]
[356374517,1742339605439,-500.0,0.00041369,120]
[356374518,1742339605449,-500.0,0.00041369,120]
[356374519,1742339605458,-500.0,0.00041369,120]
[356374520,1742339605468,-500.0,0.00041369,120]
[356374521,1742339605478,-500.0,0.00041369,120]
[356374522,1742339605488,-500.0,0.00041369,120]
[356374523,1742339605498,-500.0,0.00041369,120]
[356374524,1742339605508,-500.0,0.00041369,120]
[356374525,1742339605518,-500.0,0.00041369,120]
[356374526,1742339605528,-500.0,0.00041369,120]
[356374527,1742339605538,-500.0,0.00041369,120]
[356374528,1742339605547,-502.68697467,0.00041369,120]
[356374529,1742339605557,-500.0,0.00041369,120]
[356374530,1742339605566,-500.0,0.00041369,120]
[356374531,1742339605576,-500.0,0.00041369,120]
[356374532,1742339605585,-500.0,0.00041369,120]
[356374533,1742339605595,-1264.5,0.00041369,120]
[356374534,1742339605604,-500.0,0.00041369,2]
[356374535,1742339605613,-500.0,0.00041369,120]
[356374536,1742339605623,-500.0,0.00041369,120]
[356374537,1742339605633,-500.0,0.00041369,120]
[356374538,1742339605643,-500.0,0.00041369,120]
[356374539,1742339605652,-363.74296114,0.00041369,120]
[356374540,1742339605662,-500.0,0.00041369,120]
[356374541,1742339605672,-500.0,0.00041369,120]
[356374542,1742339605681,-500.0,0.00041369,120]
[356374543,1742339605691,-500.0,0.00041369,120]
[356374544,1742339605700,-500.00000066,0.00041369,120]
[356374545,1742339605710,-500.0,0.00041369,120]
[356374546,1742339605720,-500.0,0.00041369,120]
[356374547,1742339605730,-500.0,0.00041369,120]
[356374548,1742339605739,-229.16,0.00041369,120]
[356374549,1742339605749,-268.03,0.00041369,120]
[356374550,1742339605758,-677.1,0.00041369,120]
[356374551,1742339605768,-538.01,0.00041369,120]
[356374552,1742339605778,-1026.81,0.00041369,120]
[356374553,1742339605788,-500.0,0.00041369,120]
[356374554,1742339605798,-1290.9,0.00041369,120]
[356374555,1742339605808,-500.0,0.00041369,12]
[356374556,1742339605822,-660.95,0.00041369,12]
[356374557,1742339605832,-1089.18,0.00041369,12]
[356374558,1742339605842,-1280.18,0.00041369,12]
[356374559,1742339605851,-705.65,0.00041369,12]
[356374560,1742339605863,-839.95,0.00041369,12]
[356374561,1742339605873,-586.59,0.00041369,12]
[356374562,1742339605883,-500.0,0.00041369,12]
[356374563,1742339605893,-659.86,0.00041369,12]
[356374564,1742339605903,-605.64342881,0.00041369,12]
[356374565,1742339605912,-781.58,0.00041369,12]
[356374566,1742339605922,-578.43,0.00041369,12]
[356374567,1742339605932,-716.41,0.00041369,12]
[356374568,1742339605942,-875.76,0.00041369,12]
[356374569,1742339605952,-1293.1,0.00041369,12]
[356374570,1742339605962,-554.73,0.00041369,12]
[356374571,1742339605972,-204.10275179,0.00041369,12]
[356374572,1742339605985,-500.0,0.00041369,12]
[356374573,1742339605995,-887.4,0.00041369,12]
[356374574,1742339606004,-933.35,0.00041369,12]
[356374575,1742339606014,-645.27,0.00041369,12]
[356374576,1742339606024,-1270.34,0.00041369,12]
[356374577,1742339606034,-635.6,0.00041369,12]
[356374578,1742339606044,-546.63,0.00041369,12]
[356374579,1742339606055,-1007.61,0.00041369,12]
[356374580,1742339606065,-616.02,0.00041369,12]
[356374581,1742339606074,-686.76,0.00041369,12]
[356374582,1742339606084,-531.32,0.00041369,12]
[356374583,1742339606094,-601.48,0.00041369,12]
[356374584,1742339606104,-567.63,0.00041369,12]
[356374585,1742339606114,-963.46,0.00041369,12]
[356374586,1742339606124,-500.0,0.00041369,12]
[356374587,1742339606134,-815.63,0.00041369,12]
[356374588,1742339606144,-606.92187695,0.00041369,12]
[356374589,1742339606154,-500.37,0.00041369,12]
[356374590,1742339606164,-546.76,0.00041369,12]
[356374591,1742339606174,-599.5,0.00041369,12]
[356374592,1742339606183,-729.58,0.00041369,12]
[356374593,1742339606193,-922.39,0.00041369,12]
[356374594,1742339606203,-1163.14,0.00041369,12]
[356374595,1742339606213,-875.92,0.00041369,30]
[356374596,1742339606223,-750.87,0.00041369,12]
[356374597,1742339606234,-1410.05,0.00041369,12]
[356374598,1742339606244,-510.0,0.00041369,12]
[356374599,1742339606254,-541.9,0.00041369,12]
[356374600,1742339606263,-2100.21,0.00041369,12]
[356374601,1742339606273,-819.72,0.00041369,12]
[356374602,1742339606283,-500.0,0.00041369,12]
[356374603,1742339606292,-868.85,0.00041369,12]
[356374604,1742339606302,-589.9929363,0.00041369,12]
[356374605,1742339606313,-832.99,0.00041369,12]
[356374606,1742339606322,-337.43181437,0.00041369,12]
[356374607,1742339606332,-1487.67,0.00041369,12]
[356374608,1742339606342,-1565.380344,0.00041369,12]
[356374609,1742339606352,-728.98,0.00041369,12]
[356374610,1742339606361,-915.45,0.00041369,12]
[356374611,1742339606372,-523.14,0.00041369,12]
[356374612,1742339606382,-589.15543633,0.00041369,12]
[356374613,1742339606392,-415.53198,0.00041369,12]
[356374614,1742339606402,-571.54,0.00041369,12]
[356374615,1742339606413,-547.0,0.00041369,12]
[356374616,1742339606423,-1579.021524,0.00041369,12]
[356374617,1742339606434,-540.14,0.00041369,12]
[356374618,1742339606444,-507.06,0.00041369,12]
[356374619,1742339606453,-500.0,0.00041369,12]
[356374620,1742339606463,-1406.95,0.00041369,12]
[356374621,1742339606473,-1265.92,0.00041369,12]
[356374622,1742339606484,-583.92,0.00041369,12]
[356374623,1742339606494,-819.59,0.00041369,12]
[356374624,1742339606504,-558.89447837,0.00041369,12]
[356374625,1742339606513,-1112.86,0.00041369,12]
[356374626,1742339606523,-849.05,0.00041369,12]
[356374627,1742339606533,-610.12,0.00041369,12]
[356374628,1742339606542,-500.0,0.00041369,12]
[356374629,1742339606551,-966.8,0.00041369,12]
[356374630,1742339606560,-562.17,0.00041369,12]
[356374631,1742339606570,-500.0,0.00041369,12]
[356374632,1742339606580,-565.83,0.00041369,12]
[356374633,1742339606591,-897.12,0.00041369,12]
[356374634,1742339606602,-588.08,0.00041369,12]
[356374635,1742339606612,-539.17,0.00041369,12]
[356374636,1742339606622,-956.37,0.00041369,12]
[356374637,1742339606631,-2686.86,0.00041369,12]
[356374638,1742339606641,-914.58,0.00041369,12]
[356374639,1742339606651,-1521.69,0.00041369,7]
[356374640,1742339606661,-500.0,0.00041369,12]
[356374641,1742339606671,-537.65,0.00041369,12]
[356374642,1742339606682,-1313.1,0.00041369,12]
[356374643,1742339606691,-894.12,0.00041369,12]
[356374644,1742339606701,-523.64,0.00041369,12]
[356374645,1742339606711,-523.91,0.00041369,12]
[356374646,1742339606720,-845.67,0.00041369,12]
[356374647,1742339606729,-1156.08,0.00041369,12]
[356374648,1742339606742,-510.37,0.00041369,12]
[356374649,1742339606751,-655.83,0.00041369,12]
[356374650,1742339606760,-1175.67,0.00041369,12]
[356374651,1742339606770,-675.44,0.00041369,12]
[356374652,1742339606779,-584.29,0.00041369,12]
[356374653,1742339606789,-1360.65,0.00041369,12]
[356374654,1742339606798,-535.37,0.00041369,12]
[356374655,1742339606814,-940.73,0.00041369,12]
[356374656,1742339606823,-661.64,0.00041369,12]
[356374657,1742339606833,-628.6,0.00041369,12]
[356374658,1742339606842,-872.38,0.00041369,12]
[356374659,1742339606852,-671.95,0.00041369,12]
[356374660,1742339606862,-589.35,0.00041369,12]
[356374661,1742339606871,-500.0,0.00041369,12]
[356374662,1742339606881,-500.0,0.00041369,12]
[356374663,1742339606892,-2111.58,0.00041369,12]
[356374664,1742339606902,-1118.44,0.00041369,12]
[356374665,1742339606912,-952.51,0.00041369,12]
[356374666,1742339606922,-1141.77,0.00041369,12]
[356374667,1742339606931,-509.9,0.00041369,12]
[356374668,1742339606941,-786.29,0.00041369,12]
[356374669,1742339606950,-885.74,0.00041369,12]
[356374670,1742339606960,-853.02,0.00041369,12]
[356374671,1742339606970,-171.93376287,0.00041369,12]
[356374672,1742339606979,-930.16,0.00041369,12]
[356374673,1742339606990,-554.71,0.00041369,12]
[356374674,1742339607000,-534.99,0.00041369,12]
[356374675,1742339607009,-1096.04,0.00041369,12]
[356374676,1742339607406,-500.0,0.00041369,12]
[356374677,1742339607421,-669.21,0.00041369,12]
[356374678,1742339607431,-2116.57,0.00041369,12]
[356374679,1742339607441,-1273.18,0.00041369,12]
[356374680,1742339607451,-662.07,0.00041369,12]
[356374681,1742339607460,-824.59,0.00041369,12]
[356374682,1742339607470,-1001.65,0.00041369,12]
[356374683,1742339607479,-865.19,0.00041369,12]
[356374684,1742339607490,-569.57,0.00041369,12]
[356374685,1742339607500,-850.25,0.00041369,12]
[356374686,1742339607509,-2025.31,0.00041369,12]
[356374687,1742339607519,-1034.97,0.00041369,12]
[356374688,1742339607528,-1125.43,0.00041369,12]
[356374689,1742339607537,-736.13,0.00041369,12]
[356374690,1742339607546,-500.0,0.00041369,12]
[356374691,1742339607556,-705.75,0.00041369,12]
[356374692,1742339607565,-1168.81,0.00041369,12]
[356374693,1742339607575,-909.53,0.00041369,12]
[356374694,1742339607585,-1214.66,0.00041369,12]
[356374695,1742339607594,-750.56,0.00041369,12]
[356374696,1742339607604,-999.43,0.00041369,12]
[356374697,1742339607614,-912.96,0.00041369,12]
[356374698,1742339607623,-628.87,0.00041369,12]
[356374699,1742339607633,-1022.31,0.00041369,12]
[356374700,1742339607643,-664.59,0.00041369,12]
[356374701,1742339607652,-970.21,0.00041369,12]
[356374702,1742339607662,-605.69,0.00041369,12]
[356374703,1742339607672,-1253.42,0.00041369,12]
[356374704,1742339607682,-1388.92,0.00041369,12]
[356374705,1742339607691,-500.0,0.00041369,12]
[356374706,1742339607700,-1024.33,0.00041369,12]
[356374707,1742339607710,-603.22,0.00041369,12]
[356374708,1742339607719,-747.21,0.00041369,12]
[356374709,1742339607729,-184.81548193,0.00041369,12]
[356374710,1742339607740,-1242.02,0.00041369,12]
[356374711,1742339607750,-843.17,0.00041369,12]
[356374712,1742339607759,-535.11,0.00041369,12]
[356374713,1742339607769,-532.91,0.00041369,12]
[356374714,1742339607779,-536.51,0.00041369,7]
[356374715,1742339607790,-864.22,0.00041369,12]
[356374716,1742339607800,-1425.59,0.00041369,12]
[356374717,1742339607811,-838.26,0.00041369,12]
[356374718,1742339607822,-1035.77,0.00041369,12]
[356374719,1742339607832,-1119.9,0.00041369,12]
[356374720,1742339607841,-940.64,0.00041369,12]
[356374721,1742339607851,-757.19,0.00041369,12]
[356374722,1742339607862,-1602.15,0.00041369,12]
[356374723,1742339607872,-1002.8,0.00041369,12]
[356374724,1742339607882,-1198.43,0.00041369,12]
[356374725,1742339607894,-1331.13,0.00041369,12]
[356374726,1742339607904,-649.81,0.00041369,12]
[356374727,1742339607914,-999.15,0.00041369,12]
[356374728,1742339607923,-2598.97,0.00041369,12]
[356374729,1742339607933,-3644.21,0.00041369,12]
[356374730,1742339607942,-1387.99,0.00041369,12]
[356374731,1742339607952,-843.24,0.00041369,12]
[356374732,1742339607962,-2465.62,0.00041369,12]
[356374733,1742339607972,-975.0,0.00041369,12]
[356374734,1742339607983,-609.77,0.00041369,12]
[356374735,1742339607991,-974.58,0.00041369,12]
[356374736,1742339608001,-1078.91,0.00041369,12]
[356374737,1742339608011,-2236.78,0.00041369,12]
[356374738,1742339608020,-1919.16,0.00041369,12]
[356374739,1742339608030,-2066.04,0.00041369,12]
[356374740,1742339608039,-1744.56,0.00041369,12]
[356374741,1742339608049,-924.09,0.00041369,12]
[356374742,1742339608059,-965.89,0.00041369,12]
[356374743,1742339608068,-2170.13,0.00041369,7]
[356374744,1742339608078,-630.53,0.00041369,12]
[356374745,1742339608088,-4236.85,0.00041369,12]
[356374746,1742339608098,-701.55,0.00041369,12]
[356374747,1742339608108,-2364.63,0.00041369,12]
[356374748,1742339608118,-2071.16,0.00041369,12]
[356374749,1742339608127,-940.24,0.00041369,12]
[356374750,1742339608137,-1084.3,0.00041369,12]
[356374751,1742339608147,-833.55,0.00041369,12]
[356374752,1742339608157,-1166.33,0.00041369,12]
[356374753,1742339608166,-1018.16,0.00041369,12]
[356374754,1742339608176,-3791.02,0.00041369,12]
[356374755,1742339608185,-722.87,0.00041369,12]
[356374756,1742339608195,-591.18,0.00041369,12]
[356374757,1742339608204,-627.35,0.00041369,12]
[356374758,1742339608214,-433.99,0.00041369,12]
[356374759,1742339608223,-2218.35,0.00041369,12]
[356374760,1742339608233,-2207.71,0.00041369,12]
[356374761,1742339608243,-1038.13,0.00041369,12]
[356374762,1742339608253,-7286.97,0.00041369,2]
[356374763,1742339608263,-4093.1,0.00041369,12]
[356374764,1742339608273,-662.54,0.00041369,12]
[356374765,1742339608282,-617.61,0.00041369,12]
[356374766,1742339608292,-884.25,0.00041369,12]
[356374767,1742339608302,-590.8,0.00041369,12]
[356374768,1742339608312,-568.35,0.00041369,12]
[356374769,1742339608323,-2314.16,0.00041369,12]
[356374770,1742339608333,-1249.76,0.00041369,12]
[356374771,1742339608342,-605.74,0.00041369,12]
[356374772,1742339608352,-4019.27,0.00041369,12]
[356374773,1742339608362,-845.44,0.00041369,12]
[356374774,1742339608371,-1263.79,0.00041369,12]
[356374775,1742339608380,-722.51,0.00041369,12]
[356374776,1742339608390,-582.04,0.00041369,12]
[356374777,1742339608399,-1473.86,0.00041369,12]
[356374778,1742339608409,-1361.67,0.00041369,12]
[356374779,1742339608419,-841.11,0.00041369,12]
[356374780,1742339608428,-1912.63,0.00041369,12]
[356374781,1742339608438,-713.87,0.00041369,12]
[356374782,1742339608448,-714.31,0.00041369,12]
[356374783,1742339608457,-635.53,0.00041369,12]
[356374784,1742339608467,-1883.04,0.00041369,12]
[356374785,1742339608477,-5988.8,0.00041369,12]
[356374786,1742339608486,-2180.97,0.00041369,10]
[356374787,1742339608496,-1955.72,0.00041369,12]
[356374788,1742339608505,-6906.57,0.00041369,12]
[356374789,1742339608515,-2131.38,0.00041369,12]
[356374790,1742339608524,-713.4,0.00041369,12]
[356374791,1742339608534,-1357.37,0.00041369,12]
[356374792,1742339608544,-758.94,0.00041369,12]
[356374793,1742339608553,-517.02,0.00041369,12]
[356374794,1742339608563,-1496.75,0.00041369,12]
[356374795,1742339608573,-1214.53,0.00041369,12]
[356374796,1742339608583,-400.77958123,0.00041369,12]
[356374797,1742339608592,-2414.38,0.00041369,12]
[356374798,1742339608602,-1375.9,0.00041369,12]
[356374799,1742339608611,-1974.79,0.00041369,12]
[356374800,1742339608622,-925.56,0.00041369,12]
[356374801,1742339608631,-712.94,0.00041369,12]
[356374802,1742339608641,-1067.84,0.00041369,12]
[356374803,1742339608651,-839.12,0.00041369,12]
[356374804,1742339608661,-767.88,0.00041369,12]
[356374805,1742339608671,-1426.33,0.00041369,12]
[356374806,1742339608680,-1432.86,0.00041369,12]
[356374807,1742339608690,-780.68,0.00041369,12]
[356374808,1742339608699,-1216.8,0.00041369,12]
[356374809,1742339608709,-1487.69,0.00041369,12]
[356374810,1742339608719,-1708.8,0.00041369,12]
[356374811,1742339608729,-500.0,0.00041369,12]
[356374812,1742339608739,-913.22,0.00041369,12]
[356374813,1742339608749,-1017.99,0.00041369,12]
[356374814,1742339608759,-1929.03,0.00041369,12]
[356374815,1742339608768,-2290.36,0.00041369,12]
[356374816,1742339608778,-902.37,0.00041369,12]
[356374817,1742339608787,-1430.23,0.00041369,12]
[356374818,1742339608797,-1072.64,0.00041369,12]
[356374819,1742339608807,-674.04,0.00041369,12]
[356374820,1742339608820,-1638.63,0.00041369,12]
[356374821,1742339608830,-1760.11,0.00041369,12]
[356374822,1742339608839,-1045.11,0.00041369,12]
[356374823,1742339608849,-682.57,0.00041369,12]
[356374824,1742339608859,-794.12,0.00041369,12]
[356374825,1742339608869,-500.0,0.00041369,12]
[356374826,1742339608879,-1729.5,0.00041369,12]
[356374827,1742339608889,-1395.45,0.00041369,12]
[356374828,1742339608900,-1432.26,0.00041369,12]
[356374829,1742339608909,-1231.14,0.00041369,12]
[356374830,1742339608919,-1130.18,0.00041369,12]
[356374831,1742339608929,-1071.53,0.00041369,12]
[356374832,1742339608938,-10881.54,0.00041369,12]
[356374833,1742339608948,-940.53,0.00041369,12]
[356374834,1742339608957,-931.98,0.00041369,12]
[356374835,1742339608966,-643.93,0.00041369,12]
[356374836,1742339608976,-736.61,0.00041369,12]
[356374837,1742339608986,-1889.22,0.00041369,12]
[356374838,1742339608995,-1912.43,0.00041369,12]
[356374839,1742339609004,-867.89,0.00041369,12]
[356374840,1742339609014,-655.9,0.00041369,12]
[356374841,1742339609024,-3492.09,0.00041369,12]
[356374842,1742339609033,-8347.58,0.00041369,12]
[356374843,1742339609042,-982.97,0.00041369,12]
[356374844,1742339609052,-793.27,0.00041369,12]
[356374845,1742339609062,-2617.2,0.00041369,12]
[356374846,1742339609071,-500.0,0.00041369,12]
[356374847,1742339609081,-2613.79,0.00041369,12]
[356374848,1742339609090,-674.83,0.00041369,12]
[356374849,1742339609100,-1198.65,0.00041369,12]
[356374850,1742339609109,-1104.92,0.00041369,12]
[356374851,1742339609119,-1351.56,0.00041369,12]
[356374852,1742339609128,-573.24,0.00041369,12]
[356374853,1742339609138,-1155.96,0.00041369,12]
[356374854,1742339609148,-592.77,0.00041369,12]
[356374855,1742339609158,-819.5,0.00041369,12]
[356374856,1742339609168,-733.05,0.00041369,12]
[356374857,1742339609177,-881.57,0.00041369,12]
[356374858,1742339609187,-566.73,0.00041369,12]
[356374859,1742339609197,-678.37,0.00041369,12]
[356374860,1742339609207,-1747.47,0.00041369,12]
[356374861,1742339609216,-779.59,0.00041369,12]
[356374862,1742339609226,-700.61,0.00041369,12]
[356374863,1742339609236,-6201.97,0.00041369,12]
[356374864,1742339609245,-2724.32,0.00041369,12]
[356374865,1742339609255,-673.71,0.00041369,12]
[356374866,1742339609264,-634.03,0.00041369,12]
[356374867,1742339609273,-1388.66,0.00041369,12]
[356374868,1742339609282,-1201.66,0.00041369,12]
[356374869,1742339609292,-789.17,0.00041369,12]
[356374870,1742339609302,-765.41,0.00041369,12]
[356374871,1742339609311,-637.48,0.00041369,12]
[356374872,1742339609322,-478.109313,0.00041369,12]
[356374873,1742339609332,-1408.89,0.00041369,12]
[356374874,1742339609341,-1079.25,0.00041369,12]
[356374875,1742339609350,-500.0,0.00041369,12]
[356374876,1742339609359,-629.47,0.00041369,12]
[356374877,1742339609369,-162.02741054,0.00041369,12]
[356374878,1742339609378,-2483.39,0.00041369,12]
[356374879,1742339609387,-818.98,0.00041369,12]
[356374880,1742339609397,-8678.86,0.00041369,12]
[356374881,1742339609407,-500.0,0.00041369,12]
[356374882,1742339609417,-1387.5,0.00041369,12]
[356374883,1742339609426,-852.66,0.00041369,12]
[356374884,1742339609435,-609.81,0.00041369,12]
[356374885,1742339609445,-1940.56,0.00041369,12]
[356374886,1742339609455,-982.22,0.00041369,12]
[356374887,1742339609464,-5124.49,0.00041369,12]
[356374888,1742339609474,-848.28,0.00041369,12]
[356374889,1742339609484,-555.67,0.00041369,12]
[356374890,1742339609493,-610.21,0.00041369,12]
[356374891,1742339609503,-797.64,0.00041369,12]
[356374892,1742339609512,-1404.74,0.00041369,12]
[356374893,1742339609522,-570.46,0.00041369,12]
[356374894,1742339609531,-626.53,0.00041369,12]
[356374895,1742339609540,-1037.27,0.00041369,12]
[356374896,1742339609550,-3000.0,0.00041369,120]